{"text_format":"1","workbook":"xlsx","n_sheets":1,"sheets":["EAEPE_CA_DEP"],"not_rendered":{"charts":0,"images":0,"macros":1,"external_links":0,"defined_names":4,"comments":0,"pivot_tables":0},"unopened":[],"bounds":{"document_bytes":16777216,"sheet_cells":100000,"rows_first":2000,"rows_last":500,"rows_between":2000,"halvings":0,"cell_chars":16384,"cell_head_chars":4096},"cells_cut":0,"cells_raw":0,"read":"whole","date_system":"1900"}

{"sheet":"EAEPE_CA_DEP","index":0,"n_rows":25,"n_cols":8,"rows_kept":25,"cut":false,"hidden":false,"merged":[[1,1,1,7],[2,1,2,7],[3,1,3,7],[4,1,4,7],[5,1,7,1],[5,2,5,6],[5,7,6,7]]}
[]
[null,"Fideicomiso Policía Amigo"]
[null,"Estado Analítico del Ejercicio del Presupuesto de Egresos "]
[null,"Clasificación Administrativa"]
[null,"Del 2021 al 2022"]
[null,"Concepto","Egresos",null,null,null,null,"Subejercicio "]
[null,null,"Aprobado ","Ampliaciones/ (Reducciones) ","Modificado ","Devengado","Pagado "]
[null,null,1,2,"3 = (1+2)",4,5,"6 = ( 3 - 4)"]
[]
[null,"Fideicomiso Policía Amigo",52945358.950000003,{"$f":"24509048+25000+4739196.6-5553601.53+2500.02","v":23722143.09},{"$f":"C10+D10","v":76667502.040000007},0,5553601.5300000003,{"$f":"E10-F10","v":76667502.040000007}]
[null,"Dependencia o Unidad Administrativa 2",0,0,{"$f":"C11+D11","v":0},0,0,0]
[null,"Dependencia o Unidad Administrativa 3",0,0,0,0,0,0]
[null,"Dependencia o Unidad Administrativa 4",0,0,{"$f":"C13+D13","v":0},0,0,0]
[null,"Dependencia o Unidad Administrativa 5",0,0,0,0,0,0]
[null,"Dependencia o Unidad Administrativa 6",0,0,0,0,0,0]
[null,"Dependencia o Unidad Administrativa 7",0,0,0,0,0,0]
[null,"Dependencia o Unidad Administrativa 8",0,0,0,0,0,0]
[null,"Dependencia o Unidad Administrativa XX",0,0,0,0,0,0]
[]
[null,"Total del Gasto ",{"$f":"SUM(C9:C19)","v":52945358.950000003},{"$f":"SUM(D9:D19)","v":23722143.09},{"$f":"SUM(C20,D20)","v":76667502.040000007},{"$f":"SUM(F9:F19)","v":0},{"$f":"SUM(G9:G19)","v":5553601.5300000003},{"$f":"E20-F20","v":76667502.040000007}]
[]
[null,"_____________________________________",null,null,null,"_________________________________________"]
[null,"LIC. EVA PATRICIA FRANCO LÓPEZ",null,null,null,"LIC. CLAUDIA ALEJANDRA ALARCON ACOSTA"]
[null,"DIRECTORA GENERAL DE ADMINISTRACIÓN",null,null,null,"DIRECTORA DE ADMINISTRACIÓN Y ENAJENACIÓN"]
[null,"DE LA FISCALÍA GENERAL DEL ESTADO",null,null,null,"DE BIENES, FONDOS Y FIDEICOMISOS"]